Cogmind - Beta 16.1 @@@ ROGUE MODE // 2026.02.12 @ 17:48:45 Player: Greg Result: Destroyed by S-27 Virus with Autogun Performance ------------- Evolutions (5) 2500 Regions Visited (6) 1200 Robots Destroyed (109) 545 Value Destroyed (3387) 3387 Prototype IDs (8) 160 Alien Tech Used (0) 0 Bonus (-17) -17 TOTAL SCORE: 7775 Bonus ------- High Alert Combat Kills 44 Friendly Fire -61 Cogmind --------- Core Integrity 0/1000 Matter 42/300 Energy 100/100 System Corruption 14% Temperature Cool (0) Movement Core (50) Location -5/Factory Parts ------- > --- POWER (2) -------- (None) > --- PROPULSION (4) --- (None) > --- UTILITY (7) ------ Hacking Suite > --- WEAPON (4) ------- (None) > --- INVENTORY (5) ---- Improved Heat Sink Improved Terrain Scanner Peak State ------------ > --- POWER ------------ Fission Core Fission Core > --- PROPULSION ------- VSS Leg VSS Leg Improved Titanium Leg Flexi-carbon Leg > --- UTILITY ---------- Advanced Heat Sink Medium Storage Unit Advanced Terrain Scanner Improved Targeting Computer Advanced Actuator Array Improved Reaction Control System Advanced Hacking Suite > --- WEAPON ----------- Plasma Rifle Magnetic Acceleration Cannon Proton Missile Launcher Rocket Array > --- INVENTORY -------- Nuclear Core Fission Core Advanced Treads Advanced Treads VSS Leg Improved Heat Sink Improved Terrain Scanner Hacking Suite Improved Lightning Gun Gauss Rifle [Rating: 78] Favorites ----------- Power Ion Engine Engine Ion Engine Power Core Fission Core Propulsion Aluminum Leg Treads Light Treads Leg Aluminum Leg Utility Improved Heat Sink Device Improved Heat Sink Storage Medium Storage Unit Processor Improved Targeting Computer Hackware Hacking Suite Protection Improved Utility Shielding Weapon Autogun Energy Gun Improved EM Shotgun Energy Cannon EM Pulse Cannon Ballistic Gun Autogun Ballistic Cannon Magnetic Acceleration Cannon Launcher Advanced EMP Blaster Build | -11 -10 -10 -8 -7 -6 -5 ------- Run | Yrd Mat Sub Mat Fac Fac Fac Slots Evolved 10 | . . . 4 2 2 2 Power 1 | . . . . . 1 . Propulsion 2 | . . . 2 . . . Utility 5 | . . . 1 2 . 2 Weapon 2 | . . . 1 . 1 . Parts Attached 93 | 6 16 6 27 8 17 13 Power 12 | 2 2 1 1 . 5 1 Engine 7 | 2 2 1 1 . 1 . Core 5 | . . . . . 4 1 Reactor . | . . . . . . . Propulsion 25 | 2 4 2 8 4 2 3 Treads 3 | . . . 1 . . 2 Leg 22 | 2 4 2 7 4 2 1 Wheel . | . . . . . . . Hover . | . . . . . . . Flight . | . . . . . . . Utility 28 | . 6 1 8 3 4 6 Device 20 | . 6 . 5 1 4 4 Storage 1 | . . . . 1 . . Processor 2 | . . . 1 1 . . Hackware 3 | . . . 1 . . 2 Protection 2 | . . 1 1 . . . Artifact . | . . . . . . . Weapon 28 | 2 4 2 10 1 6 3 Energy Gun 9 | . 1 1 3 1 2 1 Energy Cannon 1 | . . . 1 . . . Ballistic Gun 9 | 2 2 1 2 . . 2 Ballistic Cannon 1 | . . . . . 1 . Launcher 8 | . 1 . 4 . 3 . Special Weapon . | . . . . . . . Impact Weapon . | . . . . . . . Slashing Weapon . | . . . . . . . Piercing Weapon . | . . . . . . . Special Melee Weapon . | . . . . . . . Unidentified Prototypes 6 | . . . 4 . 1 1 Parts Lost 45 | . 1 . 12 1 6 25 Power 6 | . . . 1 . 1 4 Propulsion 15 | . . . 7 . 1 7 Utility 9 | . 1 . 1 . . 7 Weapon 15 | . . . 3 1 4 7 Highest Loss Streak 16 | . 1 . 4 1 2 16 To Critical Strikes . | . . . . . . . Average Backups 5 | . 4 4 4 8 8 7 Power 1 | . 1 1 1 2 1 1 Propulsion 1 | . 1 1 . . 1 2 Utility 1 | . . . 1 . 3 2 Weapon 1 | . 1 1 1 4 2 1 Tool/Special . | . . . . . . . Unused Backups 10 | . . 1 3 3 3 . Power 1 | . . . 1 . . . Propulsion 2 | . . 1 1 . . . Utility 2 | . . . 1 . 1 . Weapon 5 | . . . . 3 2 . Tool/Special . | . . . . . . . Average Slot Usage (%) 90 | . 94 85 90 97 94 79 Engine 9 | . 14 14 8 7 4 . Core 2 | . . . . . 7 8 Leg 26 | . 28 28 27 29 25 17 Device 12 | . 22 . 13 13 12 15 Storage 1 | . . . . 4 6 4 Processor 1 | . . . . 1 6 3 Hackware 3 | . . . 3 7 6 6 Protection 5 | . . 13 9 7 . . Energy Gun 8 | . . 3 14 15 7 6 Ballistic Gun 8 | . 25 16 2 . . 1 Launcher 7 | . 1 8 8 7 10 5 Peak Build Rating 78 | 5 11 26 40 44 63 78 Average Rating 30 | 4 8 13 33 41 50 57 On Entrance 24 | . 5 9 26 29 42 63 Avg Prop Armor Cover (%) 7 | . . . 8 7 . . Naked Turns . | . . . . . . . Heaviest Build 61 | 7 13 35 41 36 58 61 Greatest Support 67 | 20 20 40 67 48 64 67 Greatest Overweight (x) 8 | . . 1 2 . 1 8 Average Overweight (x) . | . . . . . . . Largest Inventory Capacity 10 | 5 5 5 5 10 10 10 Average Capacity 6 | 5 5 5 5 8 10 9 Most Carried 10 | 1 5 5 5 10 10 10 Average Carried 5 | . 4 4 4 8 8 7 Final Capacity 10 | 5 5 5 5 10 10 5 Final Carried 10 | 1 5 5 5 10 10 2 Class Distribution -------------------- 23% | Mutant 19% | Scavenger-Mutant 14% | Tank 13% | Gunner 12% | Scavenger-Skirmisher 7% | Scavenger-Gunner 5% | Scavenger-Tank Dominant Class ---------------- Scavenger-Mutant | -10/Materials Mutant | -10/Subcaves Scavenger-Skirmisher | -8/Materials Tank | -7/Factory Gunner | -6/Factory Mutant | -5/Factory Resources | -11 -10 -10 -8 -7 -6 -5 ----------- Run | Yrd Mat Sub Mat Fac Fac Fac Matter Collected 2076 | 264 550 134 545 60 258 265 Remotely . | . . . . . . . Salvage Created 3924 | 39 644 172 1476 158 735 700 Parts 208 | 2 37 14 69 11 50 25 Haulers Intercepted 5 | . 2 . 2 1 . . Recyclers Shooed . | . . . . . . . Parts Field Recycled . | . . . . . . . Retrieved Matter . | . . . . . . . Parts Self-Destructed . | . . . . . . . Prevented . | . . . . . . . Parts Restored . | . . . . . . . Kills | -11 -10 -10 -8 -7 -6 -5 ------- Run | Yrd Mat Sub Mat Fac Fac Fac Combat Hostiles Destroyed 71 | 1 11 5 31 1 10 12 Guns 38 | 1 10 2 21 . 1 3 Cannons 3 | . . . 1 . 2 . AOE 26 | . 1 3 8 . 6 8 Classes Destroyed 15 | 1 6 1 5 . 1 1 Worker 11 | . 2 . 5 . 3 1 Builder 9 | . . . 1 1 6 1 Hauler 5 | . 2 . 2 1 . . Recycler 4 | . 1 . . . 3 . Operator 2 | . 1 . . . . 1 Watcher 7 | . 1 . 3 . 1 2 Swarmer 16 | . 3 . 9 . 4 . Grunt 30 | 1 8 . 13 . 2 6 Brawler 1 | . . . 1 . . . Duelist 1 | . . . . . . 1 Sentry 7 | . . . 5 1 . 1 Specialist 2 | . . . 2 . . . Hunter 6 | . . . 1 . 3 2 Programmer 3 | . . . . . 1 2 Subdweller 5 | . . 5 . . . . Best Kill Streak 10 | 1 6 3 7 2 10 8 Combat Bots Only 5 | 1 3 3 5 1 4 4 Max Kills in Single Turn 8 | 1 2 3 4 1 8 4 Gunslinging . | . . . . . . . Exploded 3 | . 1 2 2 . 2 3 Melee . | . . . . . . . Uniques/NPCs Destroyed . | . . . . . . . Combat | -11 -10 -10 -8 -7 -6 -5 -------- Run | Yrd Mat Sub Mat Fac Fac Fac Hostile Shots Fired 572 | 2 82 14 185 18 74 197 Missed 179 | 1 18 3 59 7 27 64 Hits 393 | 1 64 11 126 11 47 133 Projectile 393 | 1 64 11 126 11 47 133 Critical Strikes 16 | . 1 . 5 . 1 9 Part Disruptions 1 | . . . . . . 1 Damage Taken 7093 | 11 756 219 1864 144 821 3278 Core 1531 | . 147 . 248 15 109 1012 Absorbed by Shields . | . . . . . . . Redirected to Shielding 84 | . . . 84 . . . Core Remaining (%) 75 | 100 . 41 54 97 87 . Volleys Fired 263 | 2 68 8 93 4 51 37 Largest 4 | 2 2 2 3 2 3 4 Hottest 224 | 40 53 105 180 95 136 224 Shots Fired 525 | 4 135 14 199 8 81 84 Gun 434 | 4 134 10 159 8 51 68 Cannon 53 | . . . 19 . 25 9 Launcher 38 | . 1 4 21 . 5 7 Special . | . . . . . . . Kinetic 239 | 4 134 6 38 . 25 32 Thermal 136 | . . 4 101 . 3 28 Explosive 16 | . 1 4 4 . 4 3 Electromagnetic 134 | . . . 56 8 49 21 Robot Hit Streak 25 | 3 10 8 19 25 20 25 Robot Miss Streak 6 | . 4 2 6 1 3 2 Penetration Max . | . . . . . . . Secondary Targets 3 | . . . 2 . . 1 Max Gunslinging Chain 1 | . . . 1 . . 1 Shots Hit Robots 381 | 3 90 9 141 8 62 68 Core Hits 236 | 2 33 12 64 7 65 53 Critical Kills 1 | . 1 . . . . . Critical Parts Destroyed . | . . . . . . . Critical Strikes 17 | . 1 . 7 . 2 7 Burn 10 | . . . 6 . . 4 Destroy 1 | . 1 . . . . . Blast 3 | . . . . . 2 1 Corrupt 3 | . . . 1 . . 2 Melee Attacks . | . . . . . . . Impact . | . . . . . . . Slashing . | . . . . . . . Piercing . | . . . . . . . Sneak Attacks . | . . . . . . . Combat Hostiles . | . . . . . . . Follow-up Attacks . | . . . . . . . Damage Inflicted 10696 | 26 1177 477 4274 264 2115 2363 Guns 5153 | 26 1065 118 2219 155 298 1272 Cannons 997 | . . . 301 . 529 167 Explosions 4501 | . 111 359 1747 109 1279 896 Melee . | . . . . . . . Ramming 45 | . 1 . 7 . 9 28 Kinetic 2678 | 26 1065 75 330 . 529 653 Thermal 3565 | . . 43 2531 109 300 582 Explosive 2110 | . 111 359 250 . 954 436 Electromagnetic 2298 | . . . 1156 155 323 664 Impact . | . . . . . . . Slashing . | . . . . . . . Piercing . | . . . . . . . Highest Corruption 14 | . . . 3 . 1 14 Average Corruption 2 | . . . 2 . 1 7 Corruption Purged . | . . . . . . . Corruption Blocked . | . . . . . . . Effects 15 | . . . 9 . 3 3 Message Errors 4 | . . . 2 . 1 1 Matter Fused 3 | . . . 2 . . 1 Heat Flow Errors 2 | . . . 1 . 1 . Parts Rejected 2 | . . . 1 . . 1 Data Loss (minor) 3 | . . . 2 . 1 . Data Loss (major) 1 | . . . 1 . . . Overload Shots . | . . . . . . . Overflow Damage 243 | . . . 218 12 13 . Projectiles 19 | . . . 18 . 1 . Explosions 224 | . . . 200 12 12 . Melee . | . . . . . . . Knockbacks 5 | . . . 1 . 3 1 Impact 2 | . . . 1 . . 1 Kinetic 3 | . . . . . 3 . Secondary . | . . . . . . . Self-Inflicted Damage 609 | . 24 . 204 61 96 224 Shots 23 | . 1 . 10 1 3 8 Rammed . | . . . . . . . Targets Rammed 10 | . 1 . 3 . 4 2 Kicked 10 | . 1 . 3 . 4 2 Crushed . | . . . . . . . Highest Temperature 445 | 6 36 . 445 9 142 131 Average Temperature 71 | 6 13 . 87 6 56 50 Received Heat Transfer 1266 | 6 339 36 639 30 54 162 Effects 2 | . . . 2 . . . Shutdowns 1 | . . . 1 . . . Matter Decay 1 | . . . 1 . . . Siege Activations . | . . . . . . . Martial Activations . | . . . . . . . Shielding Activations . | . . . . . . . Robots Disrupted 1 | . . . . . 1 . Combat Hostiles 1 | . . . . . 1 . Robots Corrupted 2 | . . . . 1 1 . Combat Hostiles 2 | . . . . 1 1 . Parts Fried 10 | . . . 4 1 3 2 Impact Corruptions . | . . . . . . . Robots Melted 2 | . . . 1 . . 1 Combat Hostiles 2 | . . . 1 . . 1 Parts Melted 22 | . . . 12 . . 10 Heat Transferred 6267 | . . 74 4193 150 250 1600 Parts Sabotaged . | . . . . . . . Parts Stolen . | . . . . . . . Parts Stripped . | . . . . . . . Power Chain Reactions 10 | . . . 6 1 1 2 Alert | -11 -10 -10 -8 -7 -6 -5 ------- Run | Yrd Mat Sub Mat Fac Fac Fac Maximum Alert Level 2 | . . . 2 1 1 1 Low Security (%) 66 | 100 100 . 45 40 74 71 Level 1 27 | . . . 38 59 25 28 Level 2 5 | . . . 16 . . . Level 3 . | . . . . . . . Level 4 . | . . . . . . . Level 5 . | . . . . . . . High Security . | . . . . . . . Max Security . | . . . . . . . Peak Influence 596 | 20 71 . 596 272 241 297 Initial 268 | . . . . 268 63 66 Average 155 | 4 24 . 241 213 126 167 Influence Increases 2531 | 20 319 . 1210 51 445 486 Destroy 0b10 Robot/C 1320 | 20 220 . 620 20 200 240 Destroy 0b10 Robot/NC 190 | . 35 . 55 10 65 25 Destroy Leader 314 | . 56 . 150 12 42 54 Successful Hack 18 | . 4 . . . 2 12 Disable Machine 255 | . . . 195 . 45 15 Destroy Structure 254 | . 4 . 70 9 61 110 Lose Combat Pursuer 180 | . . . 120 . 30 30 Influence Decreases 2435 | 20 319 . 618 514 437 527 Entered New Map 461 | . . . . 324 66 71 Time Decay 1524 | 20 309 . 498 180 311 206 Lost Part 450 | . 10 . 120 10 60 250 Squads Dispatched 18 | . 2 . 5 1 5 5 Investigation 4 | . 2 . 1 . . 1 Extermination 4 | . . . . 1 2 1 Reinforcement 10 | . . . 4 . 3 3 Assault . | . . . . . . . Garrison . | . . . . . . . Intercept . | . . . . . . . Searches Triggered . | . . . . . . . Construction Impeded 1 | . . . . . 1 . Haulers Reinforced 1 | . . . . . 1 . Active Scanning Responses . | . . . . . . . Cargo Convoy Interrupts . | . . . . . . . Stealth | -11 -10 -10 -8 -7 -6 -5 --------- Run | Yrd Mat Sub Mat Fac Fac Fac Distress Signals 6 | . 1 . 4 . 1 . Communications Jammed . | . . . . . . . Distress Signals . | . . . . . . . Times Spotted 119 | 1 14 12 53 1 14 24 Peak Tracking Total 8 | 1 3 6 8 1 4 8 Tactical Retreats 6 | . . . 2 . 2 2 Traps | -11 -10 -10 -8 -7 -6 -5 ------- Run | Yrd Mat Sub Mat Fac Fac Fac Traps Triggered 3 | . . . . . 2 1 Indirectly . | . . . . . . . Trap Hack Attempts . | . . . . . . . Triggered . | . . . . . . . Disarmed . | . . . . . . . Reprogrammed . | . . . . . . . Reused . | . . . . . . . Traps Extracted . | . . . . . . . Installed . | . . . . . . . Triggered . | . . . . . . . Machines | -11 -10 -10 -8 -7 -6 -5 ---------- Run | Yrd Mat Sub Mat Fac Fac Fac Machines Disabled 17 | . . . 13 . 3 1 Max in Single Turn 8 | . . . 8 . 2 1 Machines Repaired . | . . . . . . . Machines Dismantled . | . . . . . . . Machines Sabotaged . | . . . . . . . Overloaded Fab Kills . | . . . . . . . Hacking | -11 -10 -10 -8 -7 -6 -5 --------- Run | Yrd Mat Sub Mat Fac Fac Fac Machines Accessed 16 | . 7 . 2 1 3 3 Terminals 11 | . 6 . 1 . 2 2 Fabricators 3 | . . . . 1 1 1 Repair Stations . | . . . . . . . Recycling Units 2 | . 1 . 1 . . . Scanalyzers . | . . . . . . . Garrison Access . | . . . . . . . Total Hacks 35 | . 19 . 6 2 4 4 Successful 18 | . 9 . 3 . 3 3 Failed 17 | . 10 . 3 2 1 1 Catastrophic 4 | . 1 . 1 1 . 1 Database Lockouts . | . . . . . . . Manual 4 | . 2 . . . . 2 Terminals 26 | . 18 . 2 . 3 3 Fabricators 4 | . . . . 2 1 1 Repair Stations . | . . . . . . . Recycling Units 5 | . 1 . 4 . . . Scanalyzers . | . . . . . . . Garrison Access . | . . . . . . . Terminal Hacks 13 | . 8 . . . 3 2 Record 9 | . 6 . . . 2 1 Prototype ID Bank 1 | . 1 . . . . . Open DSF 2 | . . . . . 1 1 Emergency Access Points 1 | . 1 . . . . . Fabricator Hacks 1 | . . . . . . 1 Build 1 | . . . . . . 1 Repair Station Hacks . | . . . . . . . Recycling Unit Hacks 4 | . 1 . 3 . . . Report Inventory 2 | . . . 2 . . . Retrieve Components 2 | . 1 . 1 . . . Scanalyzer . | . . . . . . . Garrison Access Hacks . | . . . . . . . Unauthorized Hacks . | . . . . . . . Terminals . | . . . . . . . Fabricators . | . . . . . . . Repair Stations . | . . . . . . . Recycling Units . | . . . . . . . Scanalyzers . | . . . . . . . Garrison Access . | . . . . . . . Data Cores Recovered . | . . . . . . . Used . | . . . . . . . Hacking Detections 14 | . 6 . 2 1 3 2 Full Trace Events 4 | . 2 . 1 . . 1 Feedback Events 1 | . . . . . . 1 Hackware Fried 1 | . . . . . . 1 Feedback Blocked . | . . . . . . . Robot Schematics Acquired . | . . . . . . . Robots Built . | . . . . . . . Authchips . | . . . . . . . Time . | . . . . . . . Total Robot Build Rating . | . . . . . . . Part Schematics Acquired . | . . . . . . . Parts Built 2 | . . . . . . 2 Authchips . | . . . . . . . Time 58 | . . . . . . 58 Total Part Build Rating 14 | . . . . . . 14 Part Studies Acquired . | . . . . . . . Parts Repaired . | . . . . . . . Time . | . . . . . . . Parts Recycled . | . . . . . . . Recycled Matter . | . . . . . . . Retrieved Matter . | . . . . . . . Retrieved Components 18 | . 9 . 9 . . . Parts Scanalyzed . | . . . . . . . Part Schematics Acquired . | . . . . . . . Parts Damaged . | . . . . . . . Bothacking | -11 -10 -10 -8 -7 -6 -5 ------------ Run | Yrd Mat Sub Mat Fac Fac Fac Used RIF Installer . | . . . . . . . Robots Hacked . | . . . . . . . Non-combat . | . . . . . . . Combat . | . . . . . . . Robot Hacks Applied . | . . . . . . . Relay Couplers Released . | . . . . . . . Fabnet Peak Effective % . | . . . . . . . Robots Rewired . | . . . . . . . Allies Hacked . | . . . . . . . Hacks Repelled . | . . . . . . . Allies | -11 -10 -10 -8 -7 -6 -5 -------- Run | Yrd Mat Sub Mat Fac Fac Fac Total Allies . | . . . . . . . Largest Group . | . . . . . . . Highest-Rated Group . | . . . . . . . Highest-Rated Ally . | . . . . . . . Total Orders . | . . . . . . . Ally Attacks . | . . . . . . . Total Damage . | . . . . . . . Kills . | . . . . . . . Allies Corrupted . | . . . . . . . Allies Melted . | . . . . . . . Intel | -11 -10 -10 -8 -7 -6 -5 ------- Run | Yrd Mat Sub Mat Fac Fac Fac Active Infowar (turns) 1693 | . . . 603 . 809 281 Sensors 115 | . . . . . . 115 Terrain 1693 | . . . 603 . 809 281 Robot Analysis Total . | . . . . . . . Derelict Logs Recovered 1 | . . 1 . . . . Drone Launches . | . . . . . . . Drone Recoveries . | . . . . . . . Exploration | -11 -10 -10 -8 -7 -6 -5 ------------- Run | Yrd Mat Sub Mat Fac Fac Fac Turns Passed 4963 | 120 835 923 1439 371 841 434 Spaces Moved 2944 | 97 500 494 710 342 560 241 Core 21 | 14 . . . . . 7 Treads 53 | . . . 15 . . 38 Legs 2870 | 83 500 494 695 342 560 196 Wheels . | . . . . . . . Hover . | . . . . . . . Flight . | . . . . . . . Fastest Speed 50 | 50 120 120 120 90 90 107 Average Speed 132 | 109 120 178 146 91 117 120 Slowest Speed 450 | 120 120 190 260 120 180 450 Overloaded Moves . | . . . . . . . Propulsion Burnouts . | . . . . . . . Robots Hopped . | . . . . . . . Potential Cave-ins 5 | . . . . . . 5 Cave-ins Triggered . | . . . . . . . Exploration Rate (%) 27 | 9 68 36 49 8 15 6 Regions Visited 6 Branch Regions 1 Pre-discovered Areas . | . . . . . . . Known Exits Taken . | . . . . . . . Unknown Exits Taken 6 | 1 1 1 1 1 1 . Scrap Searched . | . . . . . . . Spaces Dug . | . . . . . . . Terrain Destroyed 267 | . 3 17 79 10 83 75 Melee . | . . . . . . . Projectile 8 | . . . . . 5 3 AOE 259 | . 3 17 79 10 78 72 Terrain Rammed . | . . . . . . . Walls Destroyed . | . . . . . . . Machines Disabled . | . . . . . . . Actions | -11 -10 -10 -8 -7 -6 -5 --------- Run | Yrd Mat Sub Mat Fac Fac Fac Total 3555 | 104 628 529 928 395 657 314 Wait 128 | . 24 4 63 22 5 10 Move 2938 | 96 499 493 709 341 559 241 Hop . | . . . . . . . Pick Up 49 | . 6 6 15 10 8 4 Fast Attach 33 | 5 5 1 12 4 5 1 Attach 41 | . . 3 15 2 8 13 Detach 3 | . . . 2 . 1 . Swap 33 | 1 12 3 4 3 7 3 Drop 57 | . 13 11 12 9 9 3 Fire 263 | 2 68 8 93 4 51 37 Melee . | . . . . . . . Ram . | . . . . . . . Kick 10 | . 1 . 3 . 4 2 Crush . | . . . . . . . Escape Stasis . | . . . . . . . Rewire . | . . . . . . . Trap . | . . . . . . . Miscellaneous . | . . . . . . . Route ------- -11/Scrapyard -10/Materials (discovered 3 exits: [*Mat] / [*Min] / [*Sub]) -10/Subcaves -8/Materials -7/Factory -6/Factory (discovered 2 exits: *Fac x2) -5/Factory (discovered 1 exit: [*Fac]) History --------- Turn | Location | Event 2 | -11/Scrapyard | Met Revision 17 57 | -11/Scrapyard | Discovered new exit (range 8) 121 | -11/Scrapyard | Entered Materials 455 | -10/Materials | Core integrity fell below 50% 502 | -10/Materials | Discovered new exit (range 11) 537 | -10/Materials | Build established: Scavenger-Mutant 774 | -10/Materials | Discovered new exit (range 15) 878 | -10/Materials | Discovered new exit (range 16) 956 | -10/Materials | Entered Subcaves 1091 | -10/Subcaves | Learned Materials stockpile data 1159 | -10/Subcaves | Build established: Mutant 1277 | -10/Subcaves | Ambushed by swarm of Subdwellers 1687 | -10/Subcaves | Discovered new exit (range 7) 1879 | -10/Subcaves | Entered Materials 1879 | -8/Materials | Evolved 4 slots: Propulsion x2, Utility x1, Weapon x1 2314 | -8/Materials | Build established: Scavenger-Skirmisher 2418 | -8/Materials | Discovered new exit (range 16) 2605 | -8/Materials | Lost 4 parts (2n2w) 2759 | -8/Materials | Lost 3 parts (3n) 3227 | -8/Materials | Build established: Tank 3318 | -8/Materials | Entered Factory 3318 | -7/Factory | Evolved 2 slots: Utility x2 3413 | -7/Factory | Found Prototype Launcher 3424 | -7/Factory | Found Prototype Launcher 3426 | -7/Factory | Found Prototype Launcher 3427 | -7/Factory | Found Prototype Launcher 3430 | -7/Factory | Found Prototype Launcher 3433 | -7/Factory | Found Prototype Launcher 3634 | -7/Factory | Discovered new exit (range 11) 3689 | -7/Factory | Entered another Factory area 3689 | -6/Factory | Evolved 2 slots: Power x1, Weapon x1 3767 | -6/Factory | Identified Rocket Array (x4) 3923 | -6/Factory | Build established: Gunner 4318 | -6/Factory | Discovered new exit (range 8) 4392 | -6/Factory | Discovered new exit (range 8) 4530 | -6/Factory | Entered another Factory area 4530 | -5/Factory | Evolved 2 slots: Utility x2 4578 | -5/Factory | Discovered new exit (range 15) 4657 | -5/Factory | Fabricated Adv. Actuator Array? 4771 | -5/Factory | Adv. Hacking Suite fried by hacking feedback 4854 | -5/Factory | Lost 8 parts (2n3u3w) 4899 | -5/Factory | System corruption reached 10% 4929 | -5/Factory | Core integrity fell below 50% 4960 | -5/Factory | Core integrity fell below 20% 4964 | -5/Factory | Destroyed by S-27 Virus with Autogun Last Messages --------------- 04906_ Slug penetrates Wall. 04907_ K-01 Serf collects debris. 04908_ Penetrated by Slug. 04908_ Acquired 5 matter. 04909_ Acquired 6 matter. 04910_ Slug penetrates Wall. 04911_ Acquired 14 matter. 04915_ Slug penetrates Wall. 04915_ Fission Core destroyed. 04921_ System corrupted: Adv. Cooling System rejected. 04935_ ALERT: Suspicious intruders detected, dispatching Specialist reinforcements to area. 04943_ Construction Platform disabled. 04943_ Adv. Treads destroyed. 04954_ Slug penetrates Wall. 04955_ C-30 ARC bursts open, deploying its payload. 04955_ S-27 Virus unfolds itself. 04957_ Med. Storage Unit destroyed. [Achievement: First Step to Greatness] [Achievement: 5k Club] Map ----- +----------------------------------------------------+ | ????????????????????? ??? ????########## #?# | | ????????????????????????? ????# !#???# #?? | | ??????????????????? ????????? # #???# #?? | | ??????????????????????????????# #???# #?? | | ??????????????????????????????# ##### #?? | | ????????????????????????? ????# + ! #?# | | ?????????????????????????? ???# ####### #?? | | ??????????????????????????????# #????## #?? | | ??????????????????????????????# #????#" #?# | | ??????????????????????????????# #???# " % #?? | | ????????????????????????? ????#/####???### #?? | | ????????????????????????? ????# #????????# ### | | ????????????????????????#+????# #?#??????#^ | | ????????????????????????# ????# #??????### % | | ????????????????????????# #???# #???????## % | | ????????????????????##### #???# #???????#" ]]] % | | ?????????????????? k#####p#???????## ]] % | | ????????????????????????# R #????????#% ]] | | ????????????????????????# #????????# | | ????????????????????????# #????????# % | | ????????????????????????# #????????# % | | ????????????????????????# #??? #???##### | | ????????????????????????# # [ #????##?##### | | ????????????????????????# + ????????????? | | ?????????? u##### t#????????????????? | | ?????????? % s @ #????????????????? | | ?????????? s s ?????????? | | ?????????? s ????????? | | ??????????? """"""" """"""sA""""""" ?????????? | | ????????????????""" """"""" """"""" # ?????????? | | ????????????????""" """""" """""""??#???????????? | | ?????????????????"" """"""" """""????????????????? | | ??????????????????????? ?????????????????? | | ?????????????????????????? ??????????????????? | | ?????????????????????????? ??????????????????? | | ??????????????????????????#####??????????????????? | | ?????????????????????????????????????????????????? | | ?????????????????????????????????????????????????? | | ?????????????????????????????????????????????????? | | ?????????????????????????????????????????????????? | | ?????????????????????????????????????????????????? | | ?????????????????????????????????????????????????? | | ?????????????????????????????????????????????????? | | ?????????????????????????????????????????????????? | | ?????????????????????????????????????????????????? | | ?????????????????????????????????????????????????? | | ?????????????????????????????????????????????????? | | ?????????????????????????????????????????????????? | | ?????????????????????????????????????????????????? | | ?????????????????????????????????????????????????? | +----------------------------------------------------+ Best States ------------- Heat Dissipation 90 Energy Generation 31 Energy Capacity 520 Matter Stores 300 Matter Capacity 300 Sight Range 16 Robot Scan Range 15 Terrain Scan Range 20 Terrain Scan Density 10 Armor Coverage 800 Utility Shielding 66 Evasion (%) 65 Targeting Accuracy 6 Core Analysis 6 Recoil Reduction 2 Offensive Hacking 24 Item Schematics ----------------- None Robot Schematics ------------------ None Fabricated ------------ Adv. Actuator Array | x2 | -5/Factory | Preloaded Repaired ---------- Nothing Studied --------- None Alien Tech Used ----------------- None Achievements -------------- 5k Club DATA ERROR: Steam Global Achievement% First Step to Greatness For Emergencies Only Ghost 'Em Heavy Suspicion It's Just You Just What I Needed Let's See Who's Tougher Made in Tau Ceti IV Novice Programmer One Hack Too Far Oops Overwhelming Power Corrupts Remodeling Serviceable Loadout Sprinter System Compromised Challenges ------------ None Game ------ Seed TargetingNanofilamentsSteel Manual? 0 Play Time 01:33:15 Cumulative 1.5 hours Start 2026.02.12 @ 15:56:49 End 2026.02.12 @ 17:48:45 Sessions 4 Manual Loads 0 Difficulty Rogue Special Mode None Game No. 2 Rogue 2 Adventurer 0 Explorer 0 Win Type - Total 0 Types 0/0/0/0/0/0/0/0/0/0 Lore% 3 Gallery% 5 Achievement% 6 Wizard Run 0 Options --------- Layout 0 ASCII 0 Keyboard 1 Movement Numpad Keybinds 0 Fullscreen 1 Font 24/Tamsyn Map View 76x50 Zoom Use 0% Tactical HUD 1 Map Filters NONE Filters NONE Steam 1 RUN: 9d2e2003-895a-4517-a95e-32ae3954dc4b